bitfinex/quotes_SOLUSD_20240821
["timestamp","ask_amount","ask_price","bid_price","bid_amount"]
[1724256965970,45.0,140.05,140.03,0.8415702]
[1724256966278,7.1399,140.06,140.03,0.8415702]
[1724256966490,7.1394,140.07,140.03,0.8415702]
[1724256966795,45.0,140.06,140.03,7.9826702]
[1724256967090,45.0,140.06,140.03,0.8415702]
[1724256967890,7.1394,140.07,140.03,7.9827702]
[1724256968282,7.1394,140.07,140.03,0.8415702]
[1724256968497,45.0,140.06,140.03,0.8415702]
[1724256969171,7.1394,140.07,140.03,7.9828702]
[1724256969367,20.0,140.1,140.03,0.8415702]
[1724256969676,27.1376,140.11,140.06,7.1394]
[1724256970370,7.1376,140.11,140.06,7.1394]
[1724256970574,7.1378,140.1,140.06,7.1394]
[1724256970788,17.8426,140.12,140.05,15.2727]
[1724256970999,7.1388,140.08,140.05,15.2727]
[1724256971293,7.1393,140.07,140.03,0.8415702]
[1724256971497,7.1398,140.06,140.03,0.8415702]
[1724256971874,7.1393,140.07,140.03,0.8415702]
[1724256972273,1.53141415,140.06,140.03,0.8415702]
[1724256972495,7.1398,140.06,140.03,0.8415702]
[1724256973000,7.1393,140.07,140.03,7.9824702]
[1724256973573,1.53141415,140.08,140.03,0.8415702]
[1724256973771,7.1404,140.05,140.03,0.8415702]
[1724256974394,1.1584278,140.03,140.01,15.8246]
[1724256976574,8.2997278,140.03,140.01,15.8246]
[1724256977206,7.1418,140.02,139.98,7.1437]
[1724256977376,1.53141415,140.01,139.97,40.6878]
[1724256977926,8.67371415,140.01,139.97,25.0044]
[1724256978073,112.858,140.0,139.92,7.1465]
[1724256978275,7.1449,139.96,139.91,17.868]
[1724256978893,7.1457,139.95,139.91,17.868]
[1724256979275,52.146,139.94,139.9,7.1478]
[1724256979597,52.146,139.94,139.89,23.6732702]
[1724256979809,45.0,139.94,139.89,16.5249702]
[1724256980017,7.1468,139.93,139.89,16.5249702]
[1724256980584,7.1468,139.93,139.89,23.6733702]
[1724256980783,7.1468,139.93,139.89,16.5249702]
[1724256980986,7.1461,139.94,139.89,16.5249702]
[1724256981310,7.1461,139.94,139.89,23.6733702]
[1724256981480,7.1461,139.94,139.9,7.1478]
[1724256981672,7.1454,139.95,139.9,7.1478]
[1724256981876,7.1454,139.95,139.91,7.1473]
[1724256982608,7.145,139.96,139.91,7.1473]
[1724256982816,27.46363371,140.0,139.89,16.5249702]
[1724256982979,7.1444,139.97,139.93,7.1462]
[1724256984491,7.1444,139.97,139.92,7.1467]
[1724256985007,7.1449,139.96,139.91,7.1473]
[1724256985219,7.1454,139.95,139.91,7.1473]
[1724256985382,7.145,139.96,139.91,7.1473]
[1724256986396,7.1454,139.95,139.91,7.1473]
[1724256986907,7.1454,139.95,139.9,25.0168]
[1724256987297,7.1454,139.95,139.91,7.1473]
[1724256988184,7.1451,139.96,139.92,7.1468]
[1724256989435,27.987917,140.0,139.91,7.1472]
[1724256989715,65.0,139.99,139.91,7.1472]
[1724256990598,7.1457,139.95,139.91,7.1472]
[1724256990798,7.1457,139.95,139.9,25.0168]
[1724256993018,7.1457,139.95,139.91,7.1473]
[1724256993325,7.46443294,139.98,139.9,17.869]
[1724256993623,65.0,139.99,139.92,25.0137]
[1724256993624,7.1449,139.96,139.92,25.0137]
[1724256993922,20.0,139.97,139.94,7.1458]
[1724256994214,7.1447,139.97,139.93,7.1463]
[1724256996736,7.144,139.98,139.93,7.1463]
[1724256996941,7.144,139.98,139.94,7.1458]
[1724256997118,20.0,140.0,139.94,34.3556]
[1724256997319,7.47087236,140.01,139.94,34.3556]
[1724256997508,7.1429,140.0,139.95,7.1452]
[1724256997941,7.1434,139.99,139.95,7.1452]
[1724256998137,7.144,139.98,139.94,34.3556]
[1724256998643,7.1434,139.99,139.94,41.5011]
[1724256998849,27.1432,140.0,139.95,7.145]
[1724256999341,1.1584278,140.03,139.97,7.1442]
[1724256999342,7.1421,140.02,139.97,7.1442]
[1724256999511,7.1421,140.02,139.98,7.1438]
[1724257000043,1.1584278,140.03,139.99,7.1428]
[1724257000246,1.1584278,140.03,140.0,22.1497]
[1724257000628,1.1584278,140.03,140.0,23.57799273]
[1724257000830,1.1584278,140.03,140.01,7.1422]
[1724257001130,1.1584278,140.03,140.02,7.1418]
[1724257001916,1.1584278,140.03,140.02,8.56970042]
[1724257002139,7.46637121,140.09,140.06,7.1397]
[1724257002315,7.1378,140.1,140.06,7.1397]
[1724257002514,31.6986571,140.15,140.07,7.1392]
[1724257002825,31.6986571,140.15,140.06,16.0428]
[1724257002826,7.1372,140.11,140.06,16.0428]
[1724257003448,7.1368,140.12,140.07,7.1391]
[1724257003817,7.1372,140.11,140.07,7.1391]
[1724257004217,19.37141415,140.14,140.06,16.0428]
[1724257004434,7.1383,140.09,140.06,16.0428]
[1724257005044,7.1383,140.09,140.05,6.1717]
[1724257009128,7.1388,140.08,140.05,6.1717]
[1724257010333,7.1388,140.08,140.04,7.1403]
[1724257011141,17.84,140.14,140.04,17.8515]
[1724257011336,7.1376,140.11,140.06,7.1396]
[1724257011658,7.4595029,140.15,140.08,7.1387]
[1724257011848,7.1371,140.12,140.07,7.1389]
[1724257012740,7.1371,140.12,140.08,7.1386]
[1724257013055,7.1363,140.13,140.09,7.1381]
[1724257013256,20.0,140.12,140.08,7.1386]
[1724257013921,7.1376,140.11,140.06,24.9879]
[1724257014127,20.0,140.12,140.03,34.4131]
[1724257014323,27.1377,140.1,140.06,7.1397]
[1724257014549,7.1372,140.11,140.07,7.1392]
[1724257014752,27.1369,140.12,140.08,7.1387]
[1724257014923,7.1369,140.12,140.08,7.1387]
[1724257015332,20.0,140.11,140.08,7.1387]
[1724257015748,20.0,140.11,140.05,17.8498]
[1724257015749,20.0,140.11,140.07,7.1391]
[1724257016266,7.1379,140.1,140.05,17.8498]
[1724257016752,7.1379,140.1,140.06,7.1393]
[1724257017361,27.1374,140.11,140.07,7.1391]
[1724257017734,7.1369,140.12,140.08,7.1387]
[1724257018139,7.1373,140.11,140.07,7.1391]
[1724257018653,7.1363,140.13,140.03,52.2651]
[1724257018838,20.0,140.12,140.04,45.25098]
[1724257019245,20.0,140.12,140.09,17.8449]
[1724257019446,50.7705,140.19,140.09,15.0582]
[1724257019447,15.1039,140.19,140.09,15.0582]
[1724257019861,7.135,140.16,140.12,7.1364]
[1724257020158,7.135,140.16,140.11,17.8428]
[1724257020159,7.1356,140.15,140.11,24.9799]
[1724257020340,17.8344,140.18,140.09,15.0582]
[1724257020865,15.1039,140.19,140.1,17.844]
[1724257021068,7.1343,140.17,140.12,17.8415]
[1724257021370,7.134,140.18,140.13,7.1358]
[1724257021836,7.1342,140.17,140.13,7.1358]
[1724257022339,20.0,140.16,140.13,7.1358]
[1724257022733,20.0,140.16,140.12,17.8415]
[1724257022930,7.135,140.16,140.12,17.8415]
[1724257023551,7.135,140.16,140.12,24.9781]
[1724257023966,7.135,140.16,140.12,17.8415]
[1724257024162,7.1352,140.15,140.09,32.9036]
[1724257024368,7.1348,140.16,140.11,7.1371]
[1724257025045,7.1348,140.16,140.12,7.1366]
[1724257025279,7.1349,140.16,140.11,17.8423]
[1724257025443,21.53141415,140.2,140.11,17.8423]
[1724257025642,45.0,140.19,140.11,17.8423]
[1724257025842,20.0,140.18,140.11,17.8423]
[1724257026046,45.0,140.17,140.11,17.8423]
[1724257026346,7.1355,140.15,140.11,17.8423]
[1724257026838,7.1358,140.14,140.11,17.8423]
[1724257027551,7.1362,140.13,140.09,22.1964]
[1724257027742,20.0,140.16,140.09,15.0582]
[1724257027743,7.1369,140.12,140.09,15.0582]
[1724257027940,7.1363,140.13,140.09,15.0582]
[1724257028166,7.1363,140.13,140.09,22.1964]
[1724257028466,7.1358,140.14,140.09,22.1964]
[1724257028656,7.1358,140.14,140.1,7.1377]
[1724257029371,7.1353,140.15,140.1,7.1377]
[1724257030065,27.1348,140.16,140.1,17.8435]
[1724257030267,7.1353,140.15,140.11,7.1371]
[1724257031458,20.0,140.16,140.09,15.0582]
[1724257031852,27.1351,140.16,140.11,7.1371]
[1724257032368,27.1347,140.16,140.12,7.1366]
[1724257032556,20.0,140.16,140.12,7.1366]
[1724257033566,27.1347,140.16,140.12,7.1366]
[1724257034280,7.1353,140.15,140.11,24.9797]
[1724257034652,20.0,140.16,140.11,24.9797]
[1724257034857,7.1348,140.16,140.12,7.1365]
[1724257036371,7.1352,140.15,140.11,24.9798]
[1724257037564,7.1347,140.16,140.12,7.1366]
[1724257039067,7.1364,140.13,140.09,22.1962]
[1724257039279,19.36601415,140.18,140.09,15.0582]
[1724257039280,17.8346,140.18,140.09,15.0582]
[1724257039579,65.0,140.17,140.09,15.0582]
[1724257040679,65.0,140.17,140.1,17.844]
[1724257041072,66.53141415,140.17,140.1,17.844]
[1724257041493,7.1365,140.13,140.09,22.1963]
[1724257042177,66.53141415,140.17,140.09,22.1963]
[1724257042178,7.1371,140.12,140.09,15.0582]
[1724257042488,7.1371,140.12,140.07,24.9864]
[1724257043067,7.1371,140.12,140.08,7.1387]
[1724257043574,7.1371,140.12,140.06,16.1995]
[1724257043575,67.66865326,140.17,140.09,17.8451]
[1724257043980,7.136,140.14,140.1,7.1376]
[1724257044285,67.66865326,140.17,140.09,24.9832]
[1724257044470,65.0,140.17,140.1,7.1377]
[1724257045588,65.0,140.17,140.09,24.9832]
[1724257045887,65.0,140.17,140.1,7.1377]
[1724257046403,65.0,140.17,140.09,17.8451]
[1724257046563,65.0,140.17,140.12,7.1366]
[1724257047160,7.1351,140.16,140.11,24.9797]
[1724257047365,20.0,140.15,140.11,24.9797]
[1724257048498,27.1353,140.15,140.11,24.9797]
[1724257048996,20.0,140.15,140.09,7.138]
[1724257049193,7.1359,140.14,140.09,7.138]
[1724257049899,7.1352,140.15,140.11,7.1371]
[1724257050207,7.1347,140.16,140.12,7.1366]
[1724257056104,20.0,140.17,140.12,17.8415]
[1724257056315,20.0,140.18,140.12,17.8415]
[1724257056598,20.0,140.2,140.12,17.8415]
[1724257056901,45.0,140.19,140.12,17.8415]
[1724257057207,45.0,140.2,140.12,17.8415]
[1724257057387,7.1342,140.17,140.13,7.1358]
[1724257057581,7.1337,140.18,140.14,7.1353]
[1724257057981,7.1337,140.18,140.12,17.8415]
[1724257057982,7.1343,140.17,140.13,7.1361]
[1724257061708,6.6075,140.21,140.11,15.4028]
[1724257061882,7.1332,140.19,140.15,7.1348]
[1724257066017,7.1336,140.18,140.14,24.9743]
[1724257066316,34.3618,140.22,140.14,24.9743]
[1724257066498,65.0,140.21,140.14,24.9743]
[1724257066816,65.0,140.21,140.11,33.2448]
[1724257066817,19.36341415,140.2,140.11,33.2448]
[1724257066988,45.0,140.19,140.11,33.2448]
[1724257067182,7.135,140.16,140.12,7.1366]
[1724257067388,20.845,140.16,140.12,7.1366]
[1724257068288,13.71,140.16,140.11,33.2448]
[1724257068506,37.8345,140.18,140.11,33.2448]
[1724257068718,7.1348,140.16,140.12,7.1367]
[1724257069319,52.1343,140.17,140.12,7.1367]
[1724257069488,7.1343,140.17,140.13,7.1358]
[1724257069689,27.1338,140.18,140.14,7.1357]
[1724257072300,20.0,140.18,140.14,7.1357]
[1724257073326,7.1342,140.17,140.13,24.9759]
[1724257073623,27.1338,140.18,140.13,24.9759]
[1724257074006,7.1342,140.17,140.13,24.9759]
[1724257077912,27.134,140.18,140.14,7.1356]
[1724257079524,30.01430438,140.23,140.15,17.8374]
[1724257079695,20.0,140.22,140.15,17.8374]
[1724257080317,7.1335,140.19,140.15,24.9722]
[1724257080997,7.1337,140.18,140.14,7.1355]
[1724257081200,7.1338,140.18,140.14,7.1355]
[1724257081825,27.1342,140.17,140.13,7.136]
[1724257082009,17.8294,140.22,140.14,17.8391]
[1724257082210,65.0,140.21,140.14,17.8391]
[1724257082722,7.1341,140.18,140.14,24.9746]
[1724257082928,65.0,140.21,140.17,7.1339]
[1724257082929,72.1323,140.21,140.17,7.1339]
[1724257083225,27.1323,140.21,140.16,24.9706]
[1724257084332,7.1327,140.2,140.16,24.9706]
[1724257084627,20.0,140.21,140.17,8.5606726]
[1724257084800,27.1321,140.21,140.17,7.134]
[1724257085126,27.1321,140.21,140.16,40.2118]
[1724257085608,20.0,140.21,140.17,7.1341]
[1724257087118,27.1323,140.21,140.17,7.1341]
[1724257089826,20.0,140.21,140.18,7.1336]
[1724257090122,20.0,140.21,140.19,1.42643618]
[1724257090503,20.0,140.22,140.18,7.1336]
[1724257091625,7.1305,140.25,140.2,7.1324]
[1724257091927,7.1305,140.25,140.21,1.42626799]
[1724257092137,7.1305,140.25,140.2,7.1324]
[1724257092512,7.1296,140.26,140.2,17.8313]
[1724257092705,7.1292,140.27,140.23,7.1311]
[1724257092905,7.46024339,140.29,140.22,17.8285]
[1724257092906,13.7,140.28,140.22,17.8285]
[1724257093106,13.7,140.28,140.23,1.42597105]
[1724257093625,13.7,140.28,140.22,17.8285]
[1724257093830,20.8289,140.28,140.22,17.8285]
[1724257094009,20.8289,140.28,140.24,7.1305]
[1724257094406,7.1289,140.28,140.24,7.1305]
[1724257094934,7.1282,140.29,140.25,7.1301]
[1724257095228,6.4558,140.31,140.26,7.1292]
[1724257095229,20.0,140.28,140.26,7.1292]
[1724257095418,20.0,140.3,140.26,7.1292]
[1724257095619,20.0,140.3,140.27,7.129]
[1724257095828,20.0,140.3,140.26,24.9531]
[1724257096012,27.1277,140.3,140.26,24.9531]
[1724257096207,7.1281,140.29,140.26,17.8237]
[1724257096532,27.1286,140.28,140.23,17.8271]
[1724257096716,7.1286,140.28,140.23,17.8271]
[1724257097723,20.0,140.3,140.23,17.8271]
[1724257097724,27.1294,140.27,140.23,17.8271]
[1724257097917,7.1294,140.27,140.23,24.9581]
[1724257098921,62.21181415,140.3,140.21,15.5833]
[1724257099216,45.0,140.29,140.21,15.5833]
[1724257099542,7.1297,140.26,140.21,22.715]
[1724257100726,7.1305,140.25,140.21,15.5833]
[1724257101036,7.1304,140.25,140.21,7.1321]
[1724257102641,7.1304,140.25,140.2,24.9633]
[1724257103042,7.1304,140.25,140.21,7.132]
[1724257103233,7.1297,140.26,140.21,7.132]
[1724257103418,7.1297,140.26,140.22,7.1315]
[1724257103622,20.0,140.28,140.22,7.1315]
[1724257103623,7.1292,140.27,140.22,7.1315]
[1724257103823,7.1292,140.27,140.23,7.1311]
[1724257103824,20.0,140.26,140.23,7.1311]
[1724257104733,20.0,140.27,140.24,7.1304]
[1724257104930,20.0,140.27,140.22,33.5169]
[1724257104931,7.1299,140.26,140.22,40.6484]
[1724257106229,7.1299,140.26,140.22,33.5169]
[1724257106524,7.1299,140.26,140.22,17.8288]
[1724257106741,7.1301,140.25,140.22,17.8288]
[1724257107048,7.1306,140.24,140.2,7.1325]
[1724257107919,20.0,140.27,140.2,7.1325]
[1724257108139,19.35191415,140.29,140.2,7.1325]
[1724257108140,7.1302,140.25,140.2,7.1325]
[1724257109235,25.42511415,140.27,140.19,17.8319]
[1724257109547,7.1318,140.22,140.19,17.8319]
[1724257110623,7.1323,140.21,140.16,17.8357]
[1724257110830,7.1326,140.2,140.16,24.9702]
[1724257111031,7.1332,140.19,140.15,13.7915]
[1724257111338,7.1327,140.2,140.16,7.1346]
[1724257111740,7.1323,140.21,140.16,7.1346]
[1724257111937,20.0,140.2,140.16,7.1346]
[1724257112323,20.0,140.2,140.15,17.8375]
[1724257112547,7.1318,140.22,140.18,7.1336]
[1724257112860,20.0,140.21,140.18,7.1336]
[1724257113537,7.1312,140.23,140.19,7.1331]
[1724257113846,20.0,140.22,140.19,7.1331]
[1724257114559,27.1316,140.22,140.18,7.1336]
[1724257115656,7.1322,140.21,140.17,24.9689]
[1724257119759,27.1316,140.22,140.18,7.1335]
[1724257119961,20.0,140.22,140.19,7.1327]
[1724257120141,27.1312,140.23,140.19,7.1327]
[1724257120456,7.1316,140.22,140.18,7.1335]
[1724257122258,27.1313,140.23,140.18,7.1335]
[1724257122826,27.1313,140.23,140.19,7.1331]
[1724257123026,20.0,140.23,140.19,7.1331]
[1724257124238,20.0,140.23,140.19,17.832]
[1724257124530,20.0,140.25,140.2,7.1325]
[1724257124747,7.1308,140.24,140.2,7.1325]
[1724257124949,20.0,140.23,140.2,7.1325]
[1724257125576,20.0,140.24,140.19,17.832]
[1724257125739,7.131,140.24,140.19,24.965]
[1724257126066,20.0,140.23,140.19,24.965]
[1724257126553,20.0,140.23,140.2,7.1326]
[1724257127646,29.87355922,140.58,140.21,17.8295]
[1724257127647,277.02969205,140.29,140.21,17.8295]
[1724257127950,254.2,140.29,140.21,17.8295]
[1724257128256,7.1287,140.28,140.23,7.1306]
[1724257128561,7.1287,140.28,140.23,17.8272]
[1724257129162,7.1281,140.29,140.25,7.13]
[1724257129375,7.1277,140.3,140.26,7.1295]
[1724257129539,7.1281,140.29,140.25,7.13]
[1724257131546,7.1277,140.3,140.26,7.1295]
[1724257131750,20.0,140.29,140.26,7.1295]
[1724257132548,7.1257,140.34,140.29,7.1277]
[1724257132767,22.6697702,140.38,140.32,7.1265]
[1724257133073,22.6697702,140.38,140.27,0.25098]
[1724257133074,0.8415702,140.38,140.33,1.42493675]
[1724257133371,0.8415702,140.38,140.34,7.1255]
[1724257134260,0.8415702,140.38,140.33,24.9402]
[1724257134261,7.9653702,140.38,140.33,24.9402]
[1724257134759,7.9653702,140.38,140.34,7.1255]
[1724257135070,1.53141415,140.37,140.31,16.3039]
[1724257135276,0.8415702,140.38,140.31,16.3039]
[1724257135441,7.1241,140.37,140.32,7.1265]
[1724257135640,20.0,140.36,140.32,7.1265]
[1724257135945,27.1247,140.36,140.32,7.1265]
[1724257136341,20.0,140.36,140.31,23.4309]
[1724257136587,7.125,140.35,140.31,23.4309]
[1724257137464,7.1246,140.36,140.32,7.1263]
[1724257137654,0.8415702,140.38,140.31,16.3039]
[1724257137655,7.125,140.35,140.31,16.3039]
[1724257138975,7.125,140.35,140.31,23.4307]
[1724257139775,7.1256,140.34,140.31,16.3039]
[1724257139976,1.53141415,140.37,140.27,34.2827]
[1724257140151,66.53141415,140.37,140.28,7.1284]
[1724257140856,7.1262,140.33,140.28,7.1284]
[1724257141754,19.34321415,140.36,140.27,41.4117]
[1724257142074,65.0,140.35,140.27,34.2827]
[1724257142575,7.1271,140.31,140.27,34.2827]
[1724257142955,71.3407,140.35,140.23,23.0181]
[1724257142956,7.1291,140.27,140.23,23.0181]
[1724257143254,17.8169,140.32,140.24,7.1306]
[1724257143255,7.1287,140.28,140.24,7.1306]
[1724257143662,7.1282,140.29,140.25,7.13]
[1724257143866,43.08533447,140.34,140.26,7.1293]
[1724257143867,7.45653447,140.34,140.26,7.1293]
[1724257144087,7.1272,140.31,140.26,7.1293]
[1724257144258,27.1276,140.3,140.26,7.1293]
[1724257144570,27.1276,140.3,140.25,24.9544]
[1724257145189,27.1276,140.3,140.26,7.1294]
[1724257145360,27.1276,140.3,140.27,7.1289]
[1724257145361,20.0,140.3,140.27,7.1289]
[1724257146872,20.0,140.3,140.26,7.1295]
[1724257147888,27.1276,140.3,140.26,7.1295]
[1724257148267,7.1281,140.29,140.25,17.8245]
[1724257148488,27.1277,140.3,140.25,24.9541]
[1724257148996,27.1277,140.3,140.26,7.1295]
[1724257149772,20.0,140.3,140.26,7.1295]
[1724257150182,27.1276,140.3,140.25,24.9544]
[1724257151905,20.0,140.3,140.27,7.129]
[1724257152393,7.1259,140.34,140.27,17.8222]
[1724257152593,7.1259,140.34,140.3,7.1275]
[1724257152796,7.1251,140.35,140.31,8.55214036]
[1724257152965,7.1251,140.35,140.31,7.127]
[1724257153393,7.1245,140.36,140.32,7.1265]
[1724257154286,0.8415702,140.38,140.33,17.8148]
[1724257155682,7.9650702,140.38,140.34,7.1251]
[1724257157483,0.8415702,140.38,140.35,7.1249]
[1724257159988,7.9650702,140.38,140.34,7.1252]
[1724257160490,0.8415702,140.38,140.35,7.1247]
[1724257161315,0.8415702,140.38,140.37,7.124]
[1724257161484,0.8415702,140.38,140.37,7.24949]
[1724257161686,0.8415702,140.38,140.37,53.79878436]
[1724257162114,6.0878,140.5,140.37,45.25098]
[1724257162286,6.0878,140.5,140.42,17.8027]
[1724257162481,6.0878,140.5,140.43,0.12549]
[1724257162708,6.0878,140.5,140.42,17.8027]
[1724257163511,7.1185,140.48,140.43,7.1209]
[1724257163695,20.0,140.47,140.42,17.8027]
[1724257163894,7.1189,140.47,140.42,24.9241]
[1724257164412,7.1189,140.47,140.42,24.924]
[1724257164614,7.1185,140.48,140.43,7.1209]
[1724257164913,7.1181,140.49,140.44,7.1203]
[1724257165298,7.1184,140.48,140.43,7.1208]
[1724257165692,20.0,140.47,140.43,7.1208]
[1724257166515,21.53141415,140.47,140.42,17.8027]
[1724257166813,20.0,140.46,140.42,24.9241]
[1724257166990,20.0,140.49,140.42,24.9241]
[1724257167316,45.0,140.48,140.42,24.9241]
[1724257167611,28.65071415,140.47,140.42,24.9241]
[1724257167807,28.65071415,140.47,140.4,7.122]
[1724257167808,7.12,140.45,140.4,7.122]
[1724257168611,7.1211,140.43,140.39,24.93]
[1724257168806,7.1211,140.43,140.39,17.8071]
[1724257170597,7.1211,140.43,140.39,24.93]
[1724257170793,7.1205,140.44,140.39,24.93]
[1724257171021,20.0,140.43,140.39,24.93]
[1724257174422,27.1211,140.43,140.39,17.8071]
[1724257175994,20.0,140.43,140.39,17.8071]
[1724257176812,20.0,140.43,140.4,7.1225]
[1724257180127,20.0,140.43,140.39,17.8071]
[1724257180128,27.121,140.43,140.39,24.93]
[1724257180321,21.53141415,140.43,140.36,17.8106]
[1724257180638,20.0,140.43,140.36,17.8106]
[1724257180830,15.3596,140.45,140.36,17.8106]
[1724257180831,20.0,140.44,140.36,17.8106]
[1724257180994,20.0,140.44,140.37,7.1238]
[1724257180995,7.1224,140.41,140.37,7.1238]
[1724257181195,27.1226,140.4,140.36,17.8106]
[1724257181404,7.1231,140.39,140.36,17.8106]
[1724257181725,7.1231,140.39,140.33,24.9406]
[1724257181726,27.1235,140.38,140.33,24.9406]
[1724257182408,19.33541415,140.42,140.33,17.8147]
[1724257182607,45.0,140.41,140.33,24.9407]
[1724257182797,20.0,140.4,140.33,24.9407]
[1724257182996,7.1242,140.37,140.33,24.9407]
[1724257183221,20.0,140.4,140.33,17.8147]
[1724257183617,20.0,140.4,140.34,0.12549]
[1724257183918,20.0,140.41,140.34,0.12549]
[1724257184938,7.123,140.39,140.35,7.125]
[1724257185229,20.0,140.38,140.35,7.125]
[1724257185532,7.1226,140.4,140.36,7.1244]
[1724257185704,33.1601,140.45,140.37,8.54842176]
[1724257185905,7.1218,140.42,140.37,7.1239]
[1724257186334,27.122,140.41,140.37,7.1239]
[1724257188011,7.1225,140.4,140.36,7.1244]
[1724257188934,7.1225,140.4,140.35,24.9367]
[1724257189133,7.1225,140.4,140.36,7.1245]
[1724257189521,20.0,140.41,140.37,17.8094]
[1724257189825,20.0,140.42,140.38,7.1231]
[1724257190331,20.0,140.42,140.39,7.1226]
[1724257190541,7.1211,140.43,140.39,7.1226]
[1724257190710,20.0,140.42,140.39,7.1226]
[1724257191811,27.1215,140.42,140.38,7.1234]
[1724257196131,27.1215,140.42,140.39,7.123]
[1724257196132,20.0,140.42,140.39,7.123]
[1724257196645,20.0,140.42,140.38,7.1233]
[1724257197142,27.1215,140.42,140.38,7.1233]
[1724257197640,20.0,140.42,140.39,7.1229]
[1724257199440,27.1215,140.42,140.39,7.1229]
[1724257199646,20.0,140.42,140.39,7.1229]
[1724257199828,20.0,140.42,140.4,7.1224]
[1724257200030,20.0,140.43,140.4,7.1224]
[1724257200244,27.121,140.43,140.4,7.1224]
[1724257200720,27.121,140.43,140.39,24.9301]
[1724257201446,20.0,140.43,140.4,7.1224]
[1724257201738,27.121,140.43,140.39,24.9301]
[1724257202331,20.0,140.43,140.39,17.8073]
[1724257202529,7.1213,140.43,140.39,24.9302]
[1724257202849,20.0,140.42,140.36,17.8102]
[1724257203347,20.0,140.45,140.36,17.8102]
[1724257203543,45.0,140.44,140.36,17.8102]
[1724257203761,20.0,140.43,140.35,22.3962]
[1724257203929,20.0,140.43,140.4,7.1221]
[1724257205829,27.1209,140.43,140.39,7.1228]
[1724257206664,20.0,140.43,140.35,40.2077]
[1724257206864,20.0,140.44,140.35,40.2077]
[1724257207065,7.1223,140.41,140.37,7.1237]
[1724257207432,7.1211,140.43,140.39,7.1229]
[1724257207664,20.0,140.42,140.39,7.1229]
[1724257207870,7.1211,140.43,140.39,7.1229]
[1724257208048,20.0,140.42,140.39,7.1229]
[1724257208540,20.0,140.42,140.4,7.1224]
[1724257208943,20.0,140.43,140.4,7.1224]
[1724257210466,27.121,140.43,140.39,24.9301]
[1724257211538,7.1215,140.42,140.39,17.8073]
[1724257212260,7.1222,140.41,140.37,7.124]
[1724257213761,7.1215,140.42,140.38,7.1234]
[1724257213962,20.0,140.41,140.39,7.1229]
[1724257214244,27.1211,140.43,140.39,7.1229]
[1724257215174,20.0,140.43,140.4,8.5467685]
[1724257215574,20.0,140.43,140.4,7.1224]
[1724257216677,33.2702,140.49,140.4,17.806]
[1724257216867,7.1191,140.47,140.43,7.1209]
[1724257217077,6.369,140.51,140.44,7.1204]
[1724257217078,7.1186,140.48,140.44,7.1204]
[1724257218278,20.0,140.47,140.44,7.1204]
[1724257218658,20.0,140.48,140.44,7.1204]
[1724257218984,20.0,140.48,140.45,7.1198]
[1724257219657,7.1171,140.51,140.46,24.9176]
[1724257220156,7.1171,140.51,140.47,1.42355267]
[1724257220358,7.1171,140.51,140.46,24.9176]
[1724257220557,7.9580702,140.52,140.47,1.42354403]
[1724257221067,7.9580702,140.52,140.47,7.1187]
[1724257221771,27.1169,140.51,140.47,7.1187]